[Event "Fagernes GM Open Autumn 2024"]
[Site "Fagernes"]
[Date "2024.10.08"]
[Round "3.22"]
[White "Southcott-Moyers, Indy"]
[Black "Kanyamarala, Tarun"]
[Result "1/2-1/2"]
[ECO "E12"]
[WhiteElo "2143"]
[BlackElo "2369"]
[Annotator "RC"]
[PlyCount "148"]
[EventDate "2024.10.03"]
[EventType "swiss"]
[EventCountry "NOR"]
[SourceTitle "playchess.com"]
[Source "ChessBase"]
[SourceQuality "1"]
[TimeControl "40/6000:2400+30"]

1. d4 {[%emt 0:00:00]} Nf6 {[%emt 0:00:00]} 2. c4 {[%emt 0:00:00]} e6 {[%emt 0:00:00]} 3. Nf3 {[%emt 0:00:00]} b6 {[%emt 0:00:00]} 4. a3 {[%emt 0:00:00]} Bb7 {[%emt 0:00:00]} 5. Nc3 {[%emt 0:00:31]} g6 {[%emt 0:00:00]} 6. d5 {[%emt 0:11:43]} Bg7 {[%emt 0:00:00]} 7. e4 {[%emt 0:00:52]} exd5 {[%emt 0:00:00]} 8. exd5 {[%emt 0:03:28]} O-O {[%emt 0:00:00]} 9. Be2 {[%emt 0:01:01]} c6 {[%emt 0:00:00]} 10. dxc6 {[%emt 0:09:41]} dxc6 {[%emt 0:00:00]} 11. O-O {[%emt 0:00:30]} Na6 {[%emt 0:04:32]} 12. Qc2 {[%emt 0:06:59]} Nc5 {[%emt 0:02:13]} 13. Bf4 {[%emt 0:02:42]} Qe7 {[%emt 0:07:15]} 14. Rfe1 {[%emt 0:02:17]} Rfd8 {[%emt 0:01:31]} 15. Bf1 {[%emt 0:10:15]} Qf8 {[%emt 0:00:29]} 16. Rad1 {[%emt 0:03:33]} Ne6 {[%emt 0:00:00]} 17. Be5 {[%emt 0:00:15]} c5 {[%emt 0:01:29]} 18. Bxf6 {[%emt 0:09:09]} Bxf6 {[%emt 0:00:15]} 19. Nd5 {[%emt 0:00:00]} Bg7 {[%emt 0:01:37]} 20. g3 {[%emt 0:00:25]} Rd6 {[%emt 0:01:31]} 21. Bg2 {[%emt 0:03:05]} Rad8 {[%emt 0:01:14]} 22. Nd2 {[%emt 0:00:49]} Nd4 {[%emt 0:05:15]} 23. Qb1 {[%emt 0:05:08]} R8d7 {[%emt 0:16:01]} 24. Ne4 {[%emt 0:03:25]} Rxd5 {[%emt 0:08:35]} 25. cxd5 {[%emt 0:00:00]} Bxd5 {[%emt 0:00:00]} 26. Nd2 {[%emt 0:02:48]} Be6 {[%emt 0:03:46]} 27. h3 {[%emt 0:04:13]} Qd8 {[%emt 0:01:22]} 28. Kh1 {[%emt 0:02:29]} h5 {[%emt 0:02:01]} 29. Nf3 {[%emt 0:01:18]} Nxf3 {[%emt 0:16:42]} 30. Bxf3 {[%emt 0:00:49]} Qf6 {[%emt 0:00:55]} 31. Kg2 {[%emt 0:03:33]} Rxd1 {[%emt 0:04:44]} 32. Qxd1 {[%emt 0:02:02]} Qxb2 {[%emt 0:00:08]} 33. Qd8+ {[%emt 0:00:15]} Kh7 {[%emt 0:00:00]} 34. g4 {[%emt 0:00:00]} Qd4 {[%emt 0:06:28]} 35. Qe8 {[%emt 0:03:03]} Qf6 {[%emt 0:04:46]} 36. a4 {[%emt 0:01:47]} h4 {[%emt 0:00:00]} 37. Rxe6 {[%emt 0:00:25]} Qxe6 {[%emt 0:02:05]} 38. Qxe6 {[%emt 0:00:00]} fxe6 {[%emt 0:00:00]} 39. Be2 {[%emt 0:00:00]} g5 {[%emt 0:00:32]} 40. Kf3 {[%emt 0:00:00]} Bd4 {[%emt 0:03:51]} 41. Ke4 {[%emt 0:40:13]} Kg7 {[%emt 0:13:42]} 42. f4 {[%emt 0:00:00]} Kf6 {[%emt 0:00:36]} 43. fxg5+ {[%emt 0:00:00]} Kxg5 {[%emt 0:00:05]} 44. Bf1 {[%emt 0:00:00]} Kf6 {[%emt 0:00:24]} 45. Be2 {[%emt 0:00:00]} Bb2 {[%emt 0:00:22]} 46. Bf1 {[%emt 0:00:00]} Bc1 {[%emt 0:00:08]} 47. Be2 {[%emt 0:00:00]} Ke7 {[%emt 0:00:08]} 48. Bf1 {[%emt 0:00:00]} Kd6 {[%emt 0:00:08]} 49. Be2 {[%emt 0:00:00]} Bg5 {[%emt 0:04:13]} 50. Bf1 {[%emt 0:00:00]} Bf6 {[%emt 0:00:42]} 51. Be2 {[%emt 0:00:00]} Kc6 {[%emt 0:04:54]} 52. Bc4 {[%emt 0:00:00]} Kb7 {[%emt 0:03:59]} 53. Bf1 {[%emt 0:00:00]} b5 {[%emt 0:07:12]} 54. Bxb5 {[%emt 0:00:00]} Kb6 {[%emt 0:00:11]} 55. g5 {[%emt 0:00:00]} Bxg5 {[%emt 0:04:42]} 56. Ke5 {[%emt 0:00:00]} Ka5 {[%emt 0:00:12]} 57. Kxe6 {[%emt 0:00:00]} Kb4 {[%emt 0:00:33]} 58. Kd5 {[%emt 0:00:00]} Be7 {[%emt 0:00:12]} 59. Be8 {[%emt 0:04:53]} c4 {[%emt 0:02:42]} 60. Bh5 {[%emt 0:00:09]} c3 {[%emt 0:03:05]} 61. Bd1 {[%emt 0:00:07]} Bf6 {[%emt 0:01:45]} 62. Ke4 {[%emt 0:00:24]} Kc4 {[%emt 0:00:48]} 63. Bc2 {[%emt 0:00:04]} Bg5 {[%emt 0:00:07]} 64. Bd1 {[%emt 0:00:05]} Be7 {[%emt 0:00:44]} 65. Bc2 {[%emt 0:00:06]} Bb4 {[%emt 0:00:11]} 66. Bd1 {[%emt 0:00:09]} Ba5 {[%emt 0:00:07]} 67. Bc2 {[%emt 0:00:04]} Kb4 {[%emt 0:00:25]} 68. Kd3 {[%emt 0:00:06]} Ka3 {[%emt 0:00:04]} 69. Bd1 {[%emt 0:00:05]} Kb2 {[%emt 0:00:04]} 70. Bc2 {[%emt 0:00:04]} Kc1 {[%emt 0:00:04]} 71. Bb3 {[%emt 0:00:06]} Bb4 {[%emt 0:00:05]} 72. Bc2 {[%emt 0:00:05]} Kb2 {[%emt 0:00:29]} 73. Bd1 {[%emt 0:00:05]} Ba5 {[%emt 0:00:36]} 74. Bc2 {[%emt 0:00:06]} Bb4 {[%emt 0:00:06]} 1/2-1/2

[Event "Fagernes GM Open Autumn 2024"]
[Site "Fagernes"]
[Date "2024.10.08"]
[Round "3.23"]
[White "Hetland, Even"]
[Black "Namitbir Singh Walia"]
[Result "0-1"]
[ECO "C95"]
[WhiteElo "1970"]
[BlackElo "2351"]
[Annotator "RC"]
[PlyCount "78"]
[EventDate "2024.10.03"]
[EventType "swiss"]
[EventCountry "NOR"]
[SourceTitle "playchess.com"]
[Source "ChessBase"]
[SourceQuality "1"]
[TimeControl "40/6000:2400+30"]

1. e4 {[%emt 0:00:00]} e5 {[%emt 0:00:00]} 2. Nf3 {[%emt 0:00:00]} Nc6 {[%emt 0:00:00]} 3. Bb5 {[%emt 0:00:00]} a6 {[%emt 0:00:00]} 4. Ba4 {[%emt 0:00:00]} Nf6 {[%emt 0:00:00]} 5. O-O {[%emt 0:00:00]} Be7 {[%emt 0:00:37]} 6. Re1 {[%emt 0:00:00]} b5 {[%emt 0:00:00]} 7. Bb3 {[%emt 0:00:00]} d6 {[%emt 0:00:00]} 8. c3 {[%emt 0:00:00]} O-O {[%emt 0:00:00]} 9. h3 {[%emt 0:00:00]} Nb8 {[%emt 0:00:19]} 10. d4 {[%emt 0:00:00]} Nbd7 {[%emt 0:00:00]} 11. Nbd2 {[%emt 0:00:00]} Bb7 {[%emt 0:00:00]} 12. Bc2 {[%emt 0:00:00]} Re8 {[%emt 0:00:00]} 13. Nf1 {[%emt 0:00:00]} Bf8 {[%emt 0:00:00]} 14. Ng3 {[%emt 0:00:00]} g6 {[%emt 0:00:00]} 15. a4 {[%emt 0:00:00]} Bg7 {[%emt 0:01:18]} 16. Bd3 {[%emt 0:00:00]} c6 {[%emt 0:01:08]} 17. Bg5 {[%emt 0:00:00]} h6 {[%emt 0:02:54]} 18. Bd2 {[%emt 0:00:16]} Kh7 {[%emt 0:08:45]} 19. Qc2 {[%emt 0:05:20]} Qc7 {[%emt 0:06:30]} 20. h4 {[%emt 0:12:18]} c5 {[%emt 0:08:54]} 21. axb5 {[%emt 0:23:20]} c4 {[%emt 0:00:16]} 22. bxa6 {[%emt 0:00:00]} cxd3 {[%emt 0:10:25]} 23. Qxd3 {[%emt 0:00:00]} Bc6 {[%emt 0:09:56]} 24. d5 {[%emt 0:10:45]} Nc5 {[%emt 0:00:48]} 25. Qe2 {[%emt 0:04:39]} Bd7 {[%emt 0:00:55]} 26. b4 {[%emt 0:03:45]} Nb3 {[%emt 0:01:54]} 27. Ra3 {[%emt 0:02:14]} Nxd2 {[%emt 0:00:00]} 28. Nxd2 {[%emt 0:00:00]} Reb8 {[%emt 0:03:48]} 29. Rea1 {[%emt 0:03:07]} Ra7 {[%emt 0:06:49]} 30. Qd3 {[%emt 0:06:19]} h5 {[%emt 0:06:18]} 31. Ngf1 {[%emt 0:05:14]} Ng4 {[%emt 0:04:09]} 32. Ne3 {[%emt 0:05:15]} Nxe3 {[%emt 0:00:00]} 33. fxe3 {[%emt 0:00:00]} Bh6 {[%emt 0:00:40]} 34. Ra5 {[%emt 0:06:13]} Qb6 {[%emt 0:04:58]} 35. Kh1 {[%emt 0:00:00]} Kg7 {[%emt 0:05:23]} 36. Rb1 {[%emt 0:05:29]} Qc7 {[%emt 0:07:18]} 37. c4 {[%emt 0:02:31]} Rxb4 {[%emt 0:00:43]} 38. Rxb4 {[%emt 0:01:57]} Qxa5 {[%emt 0:00:00]} 39. Rb7 {[%emt 0:00:00]} Qxa6 {[%emt 0:00:00]} 0-1

[Event "Fagernes GM Open Autumn 2024"]
[Site "Fagernes"]
[Date "2024.10.08"]
[Round "3.24"]
[White "Welling, Gerard"]
[Black "Mannion, Stephen R"]
[Result "1/2-1/2"]
[ECO "A13"]
[WhiteElo "2206"]
[BlackElo "2142"]
[Annotator "RC"]
[PlyCount "56"]
[EventDate "2024.10.03"]
[EventType "swiss"]
[EventCountry "NOR"]
[SourceTitle "playchess.com"]
[Source "ChessBase"]
[SourceQuality "1"]
[TimeControl "40/6000:2400+30"]

1. b3 {[%emt 0:00:00]} d5 {[%emt 0:00:00]} 2. e3 {[%emt 0:00:00]} Nf6 {[%emt 0:00:00]} 3. Bb2 {[%emt 0:00:00]} e6 {[%emt 0:04:09]} 4. Nf3 {[%emt 0:01:11]} b6 {[%emt 0:00:00]} 5. c4 {[%emt 0:02:23]} Bb7 {[%emt 0:00:00]} 6. Be2 {[%emt 0:00:00]} Nbd7 {[%emt 0:00:00]} 7. O-O {[%emt 0:00:00]} Bd6 {[%emt 0:00:00]} 8. Nc3 {[%emt 0:00:33]} O-O {[%emt 0:00:00]} 9. cxd5 {[%emt 0:01:29]} exd5 {[%emt 0:00:00]} 10. Nb5 {[%emt 0:04:25]} Be7 {[%emt 0:00:00]} 11. Rc1 {[%emt 0:01:56]} c5 {[%emt 0:03:04]} 12. d4 {[%emt 0:00:16]} a6 {[%emt 0:05:42]} 13. Nc3 {[%emt 0:00:00]} Rc8 {[%emt 0:03:57]} 14. dxc5 {[%emt 0:02:14]} Nxc5 {[%emt 0:02:09]} 15. Nd4 {[%emt 0:01:08]} Qd7 {[%emt 0:12:33]} 16. b4 {[%emt 0:24:33]} Nce4 {[%emt 0:00:28]} 17. Nxe4 {[%emt 0:00:26]} dxe4 {[%emt 0:02:29]} 18. b5 {[%emt 0:03:27]} axb5 {[%emt 0:10:13]} 19. Bxb5 {[%emt 0:00:46]} Qd5 {[%emt 0:01:08]} 20. Nc6 {[%emt 0:07:58]} Bxc6 {[%emt 0:02:51]} 21. Bxc6 {[%emt 0:00:00]} Qxa2 {[%emt 0:00:00]} 22. Bxf6 {[%emt 0:00:00]} Bxf6 {[%emt 0:00:00]} 23. Bxe4 {[%emt 0:00:00]} Rxc1 {[%emt 0:06:36]} 24. Qxc1 {[%emt 0:00:00]} Qe6 {[%emt 0:00:00]} 25. Qb1 {[%emt 0:00:00]} g6 {[%emt 0:00:00]} 26. Rc1 {[%emt 0:00:00]} Rc8 {[%emt 0:01:54]} 27. Rxc8+ {[%emt 0:00:00]} Qxc8 {[%emt 0:00:00]} 28. g3 {[%emt 0:00:00]} Qe6 {[%emt 0:01:55]} 1/2-1/2

[Event "Fagernes GM Open Autumn 2024"]
[Site "Fagernes"]
[Date "2024.10.08"]
[Round "3.25"]
[White "Westrum, Kim Roger Hansen"]
[Black "Gasland, Lukas Dominik"]
[Result "1-0"]
[ECO "B90"]
[WhiteElo "2205"]
[BlackElo "1905"]
[Annotator "RC"]
[PlyCount "59"]
[EventDate "2024.10.03"]
[EventType "swiss"]
[EventCountry "NOR"]
[SourceTitle "playchess.com"]
[Source "ChessBase"]
[SourceQuality "1"]
[TimeControl "40/6000:2400+30"]

1. e4 {[%emt 0:00:00]} c5 {[%emt 0:00:00]} 2. Nc3 {[%emt 0:00:00]} d6 {[%emt 0:00:00]} 3. Nge2 {[%emt 0:00:00]} Nf6 {[%emt 0:03:51]} 4. d4 {[%emt 0:00:00]} cxd4 {[%emt 0:00:00]} 5. Nxd4 {[%emt 0:00:00]} a6 {[%emt 0:00:00]} 6. h4 {[%emt 0:00:00]} e5 {[%emt 0:03:28]} 7. Nb3 {[%emt 0:00:00]} Be7 {[%emt 0:01:53]} 8. Be2 {[%emt 0:00:00]} Be6 {[%emt 0:05:40]} 9. f4 {[%emt 0:00:00]} Nc6 {[%emt 0:11:53]} 10. f5 {[%emt 0:08:30]} Bxb3 {[%emt 0:00:51]} 11. axb3 {[%emt 0:00:00]} h5 {[%emt 0:01:19]} 12. Bg5 {[%emt 0:23:30]} Nd4 {[%emt 0:03:15]} 13. Bxf6 {[%emt 0:00:54]} Bxf6 {[%emt 0:00:17]} 14. g3 {[%emt 0:00:00]} Rc8 {[%emt 0:06:38]} 15. Bd3 {[%emt 0:04:54]} Qc7 {[%emt 0:16:36]} 16. Nd5 {[%emt 0:04:29]} Nxc2+ {[%emt 0:05:48]} 17. Kd2 {[%emt 0:00:00]} Qc5 {[%emt 0:02:20]} 18. Rc1 {[%emt 0:04:33]} Qf2+ {[%emt 0:08:39]} 19. Qe2 {[%emt 0:00:00]} Qd4 {[%emt 0:02:32]} 20. Rxc2 {[%emt 0:00:21]} O-O {[%emt 0:00:19]} 21. Qe3 {[%emt 0:01:15]} Rxc2+ {[%emt 0:04:09]} 22. Kxc2 {[%emt 0:00:00]} Rc8+ {[%emt 0:00:00]} 23. Kb1 {[%emt 0:00:00]} Qxe3 {[%emt 0:00:01]} 24. Nxe3 {[%emt 0:00:00]} g6 {[%emt 0:00:13]} 25. Rc1 {[%emt 0:02:46]} Rb8 {[%emt 0:00:57]} 26. Rc7 {[%emt 0:00:12]} Bd8 {[%emt 0:00:00]} 27. Rd7 {[%emt 0:00:00]} Bb6 {[%emt 0:00:00]} 28. Nd5 {[%emt 0:00:00]} Bf2 {[%emt 0:00:02]} 29. fxg6 {[%emt 0:00:00]} fxg6 {[%emt 0:00:00]} 30. Nf6+ {[%emt 0:00:00]} 1-0

[Event "Fagernes GM Open Autumn 2024"]
[Site "Fagernes"]
[Date "2024.10.08"]
[Round "3.26"]
[White "Bjorkan, Olav"]
[Black "Gudbrandsen, Gustav"]
[Result "1/2-1/2"]
[ECO "A59"]
[WhiteElo "2022"]
[BlackElo "2197"]
[Annotator "RC"]
[PlyCount "69"]
[EventDate "2024.10.03"]
[EventType "swiss"]
[EventCountry "NOR"]
[SourceTitle "playchess.com"]
[Source "ChessBase"]
[SourceQuality "1"]
[TimeControl "40/6000:2400+30"]

1. d4 {[%emt 0:00:00]} Nf6 {[%emt 0:00:00]} 2. c4 {[%emt 0:00:00]} c5 {[%emt 0:00:09]} 3. d5 {[%emt 0:01:12]} b5 {[%emt 0:00:14]} 4. cxb5 {[%emt 0:00:00]} a6 {[%emt 0:00:00]} 5. bxa6 {[%emt 0:00:00]} Bxa6 {[%emt 0:00:00]} 6. Nc3 {[%emt 0:00:00]} d6 {[%emt 0:00:15]} 7. e4 {[%emt 0:00:48]} Bxf1 {[%emt 0:00:25]} 8. Kxf1 {[%emt 0:00:00]} g6 {[%emt 0:00:00]} 9. g3 {[%emt 0:00:00]} Bg7 {[%emt 0:00:00]} 10. Kg2 {[%emt 0:00:00]} O-O {[%emt 0:00:00]} 11. Nf3 {[%emt 0:01:09]} Nbd7 {[%emt 0:00:00]} 12. Qe2 {[%emt 0:04:07]} Qb6 {[%emt 0:02:50]} 13. Nd2 {[%emt 0:10:21]} Qa6 {[%emt 0:08:44]} 14. Qxa6 {[%emt 0:06:41]} Rxa6 {[%emt 0:00:00]} 15. Nc4 {[%emt 0:01:42]} Rb8 {[%emt 0:02:13]} 16. f4 {[%emt 0:13:37]} Rb4 {[%emt 0:03:07]} 17. Nd2 {[%emt 0:01:47]} e6 {[%emt 0:15:59]} 18. a3 {[%emt 0:08:06]} Rb8 {[%emt 0:08:18]} 19. Nc4 {[%emt 0:02:43]} exd5 {[%emt 0:04:26]} 20. exd5 {[%emt 0:00:35]} Nb6 {[%emt 0:01:25]} 21. Nxb6 {[%emt 0:02:49]} Raxb6 {[%emt 0:00:04]} 22. Re1 {[%emt 0:01:11]} Nd7 {[%emt 0:01:21]} 23. Re7 {[%emt 0:05:13]} R6b7 {[%emt 0:00:01]} 24. a4 {[%emt 0:10:37]} Kf8 {[%emt 0:00:41]} 25. Re4 {[%emt 0:03:01]} Nb6 {[%emt 0:10:09]} 26. a5 {[%emt 0:06:29]} Bxc3 {[%emt 0:00:24]} 27. bxc3 {[%emt 0:00:00]} Nxd5 {[%emt 0:00:02]} 28. c4 {[%emt 0:00:42]} Nb4 {[%emt 0:01:29]} 29. f5 {[%emt 0:02:14]} gxf5 {[%emt 0:02:04]} 30. Bh6+ {[%emt 0:00:00]} Kg8 {[%emt 0:00:00]} 31. Rf4 {[%emt 0:00:00]} Nc2 {[%emt 0:04:40]} 32. Rxf5 {[%emt 0:00:00]} Nxa1 {[%emt 0:00:00]} 33. Rg5+ {[%emt 0:00:00]} Kh8 {[%emt 0:00:00]} 34. Bg7+ {[%emt 0:00:00]} Kg8 {[%emt 0:00:00]} 35. Bh6+ {[%emt 0:00:00]} 1/2-1/2

[Event "Fagernes GM Open Autumn 2024"]
[Site "Fagernes"]
[Date "2024.10.08"]
[Round "3.27"]
[White "Advaitt Srikant Koduri"]
[Black "Sorgjerd, Jan"]
[Result "1/2-1/2"]
[ECO "A48"]
[WhiteElo "2162"]
[BlackElo "1966"]
[Annotator "RC"]
[PlyCount "142"]
[EventDate "2024.10.03"]
[EventType "swiss"]
[EventCountry "NOR"]
[SourceTitle "playchess.com"]
[Source "ChessBase"]
[SourceQuality "1"]
[TimeControl "40/6000:2400+30"]

1. d4 {[%emt 0:01:04]} Nf6 {[%emt 0:00:00]} 2. Nf3 {[%emt 0:00:00]} g6 {[%emt 0:00:00]} 3. Bf4 {[%emt 0:00:00]} Bg7 {[%emt 0:00:00]} 4. e3 {[%emt 0:00:00]} O-O {[%emt 0:00:00]} 5. h3 {[%emt 0:01:02]} c5 {[%emt 0:01:25]} 6. c3 {[%emt 0:00:00]} cxd4 {[%emt 0:01:58]} 7. cxd4 {[%emt 0:00:45]} b6 {[%emt 0:04:45]} 8. Nc3 {[%emt 0:00:28]} Bb7 {[%emt 0:00:00]} 9. Bd3 {[%emt 0:03:21]} d5 {[%emt 0:03:22]} 10. O-O {[%emt 0:04:04]} a6 {[%emt 0:02:48]} 11. b4 {[%emt 0:07:03]} Nc6 {[%emt 0:13:12]} 12. Qb3 {[%emt 0:04:54]} e6 {[%emt 0:02:10]} 13. Rfc1 {[%emt 0:02:49]} Rc8 {[%emt 0:08:10]} 14. Rab1 {[%emt 0:08:59]} Nb8 {[%emt 0:06:14]} 15. Na4 {[%emt 0:03:59]} b5 {[%emt 0:06:22]} 16. Nc5 {[%emt 0:00:36]} Qb6 {[%emt 0:00:00]} 17. a4 {[%emt 0:01:45]} Nfd7 {[%emt 0:06:14]} 18. axb5 {[%emt 0:05:26]} axb5 {[%emt 0:00:50]} 19. Ra1 {[%emt 0:02:42]} Bc6 {[%emt 0:03:15]} 20. Ra2 {[%emt 0:08:56]} Rfe8 {[%emt 0:04:18]} 21. Rca1 {[%emt 0:02:36]} e5 {[%emt 0:01:46]} 22. Nxe5 {[%emt 0:00:11]} Nxe5 {[%emt 0:01:18]} 23. Bxe5 {[%emt 0:00:00]} Bxe5 {[%emt 0:00:16]} 24. dxe5 {[%emt 0:00:00]} Rxe5 {[%emt 0:00:00]} 25. Qc3 {[%emt 0:01:21]} Re7 {[%emt 0:05:20]} 26. Qf6 {[%emt 0:03:54]} Qd8 {[%emt 0:06:52]} 27. Ra5 {[%emt 0:03:26]} Nd7 {[%emt 0:00:10]} 28. Nxd7 {[%emt 0:00:17]} Qxd7 {[%emt 0:00:00]} 29. Qd4 {[%emt 0:00:00]} Qe8 {[%emt 0:06:22]} 30. Rc1 {[%emt 0:02:49]} Rb7 {[%emt 0:03:23]} 31. Rc5 {[%emt 0:00:51]} Rcb8 {[%emt 0:02:04]} 32. h4 {[%emt 0:02:15]} h5 {[%emt 0:01:30]} 33. Ra2 {[%emt 0:02:10]} Rb6 {[%emt 0:01:09]} 34. Rac2 {[%emt 0:03:53]} Qe6 {[%emt 0:00:08]} 35. Qf4 {[%emt 0:01:18]} Be8 {[%emt 0:01:04]} 36. Qg5 {[%emt 0:01:11]} Rd6 {[%emt 0:01:56]} 37. Qf4 {[%emt 0:00:17]} Rdb6 {[%emt 0:00:00]} 38. Rc7 {[%emt 0:02:46]} R6b7 {[%emt 0:00:23]} 39. Rxb7 {[%emt 0:00:00]} Rxb7 {[%emt 0:00:00]} 40. Qd4 {[%emt 0:00:00]} Kh7 {[%emt 0:00:37]} 41. Rc5 {[%emt 0:40:48]} Bc6 {[%emt 0:01:33]} 42. Qc3 {[%emt 0:00:00]} Rb6 {[%emt 0:03:49]} 43. Bc2 {[%emt 0:00:00]} Bd7 {[%emt 0:03:09]} 44. Qd4 {[%emt 0:00:00]} Rc6 {[%emt 0:09:09]} 45. Rxd5 {[%emt 0:00:00]} Rxc2 {[%emt 0:02:04]} 46. Rxd7 {[%emt 0:00:00]} Rc1+ {[%emt 0:00:20]} 47. Kh2 {[%emt 0:00:00]} Rc4 {[%emt 0:00:12]} 48. Qa7 {[%emt 0:00:00]} Rxh4+ {[%emt 0:01:08]} 49. Kg1 {[%emt 0:00:00]} Kg7 {[%emt 0:08:59]} 50. Qa1+ {[%emt 0:07:32]} Qf6 {[%emt 0:02:25]} 51. Qxf6+ {[%emt 0:00:41]} Kxf6 {[%emt 0:00:06]} 52. f4 {[%emt 0:00:12]} g5 {[%emt 0:01:03]} 53. g3 {[%emt 0:02:47]} Rg4 {[%emt 0:00:15]} 54. Kf2 {[%emt 0:00:10]} gxf4 {[%emt 0:02:31]} 55. gxf4 {[%emt 0:01:06]} h4 {[%emt 0:01:58]} 56. Rd5 {[%emt 0:00:54]} h3 {[%emt 0:00:15]} 57. Rxb5 {[%emt 0:01:00]} Rg2+ {[%emt 0:00:26]} 58. Kf3 {[%emt 0:00:12]} Rb2 {[%emt 0:00:24]} 59. Rh5 {[%emt 0:00:21]} Rxb4 {[%emt 0:01:15]} 60. Rxh3 {[%emt 0:00:02]} Kg6 {[%emt 0:01:14]} 61. Rg3+ {[%emt 0:00:15]} Kf6 {[%emt 0:00:15]} 62. Rg5 {[%emt 0:00:15]} Ra4 {[%emt 0:00:39]} 63. Rb5 {[%emt 0:01:17]} Ra3 {[%emt 0:01:18]} 64. Ke4 {[%emt 0:01:02]} Ra4+ {[%emt 0:00:54]} 65. Kd5 {[%emt 0:00:27]} Ra3 {[%emt 0:00:53]} 66. Rb6+ {[%emt 0:00:43]} Kf5 {[%emt 0:02:08]} 67. e4+ {[%emt 0:01:23]} Kxf4 {[%emt 0:00:12]} 68. Rf6+ {[%emt 0:00:08]} Ke3 {[%emt 0:00:05]} 69. e5 {[%emt 0:01:04]} Ra5+ {[%emt 0:01:03]} 70. Kd6 {[%emt 0:00:05]} Ke4 {[%emt 0:00:44]} 71. Rxf7 {[%emt 0:00:08]} Rd5+ {[%emt 0:00:13]} 1/2-1/2

[Event "Fagernes GM Open Autumn 2024"]
[Site "Fagernes"]
[Date "2024.10.08"]
[Round "3.28"]
[White "Simonsen, David Mindestrommen"]
[Black "Kaewpitakkun, Pantham"]
[Result "0-1"]
[ECO "D73"]
[WhiteElo "1930"]
[BlackElo "2023"]
[Annotator "RC"]
[PlyCount "102"]
[EventDate "2024.10.03"]
[EventType "swiss"]
[EventCountry "NOR"]
[SourceTitle "playchess.com"]
[Source "ChessBase"]
[SourceQuality "1"]
[TimeControl "40/6000:2400+30"]

1. d4 {[%emt 0:00:00]} Nf6 {[%emt 0:00:00]} 2. c4 {[%emt 0:00:00]} g6 {[%emt 0:00:00]} 3. g3 {[%emt 0:00:00]} c6 {[%emt 0:00:00]} 4. Nf3 {[%emt 0:00:25]} Bg7 {[%emt 0:00:00]} 5. Bg2 {[%emt 0:00:00]} d5 {[%emt 0:00:00]} 6. cxd5 {[%emt 0:00:08]} cxd5 {[%emt 0:00:00]} 7. Nc3 {[%emt 0:00:00]} O-O {[%emt 0:00:00]} 8. Ne5 {[%emt 0:00:00]} Nc6 {[%emt 0:05:02]} 9. Nxc6 {[%emt 0:00:00]} bxc6 {[%emt 0:00:00]} 10. Na4 {[%emt 0:03:35]} Ne4 {[%emt 0:03:54]} 11. O-O {[%emt 0:03:08]} Rb8 {[%emt 0:05:07]} 12. Be3 {[%emt 0:03:41]} Nd6 {[%emt 0:07:09]} 13. b3 {[%emt 0:08:53]} Nf5 {[%emt 0:03:16]} 14. Qd2 {[%emt 0:00:00]} Nxe3 {[%emt 0:04:42]} 15. Qxe3 {[%emt 0:00:00]} Qd6 {[%emt 0:03:32]} 16. Rac1 {[%emt 0:01:16]} Bf5 {[%emt 0:02:46]} 17. Rc5 {[%emt 0:02:47]} Rfc8 {[%emt 0:06:29]} 18. Rfc1 {[%emt 0:00:32]} Rb4 {[%emt 0:01:01]} 19. Rd1 {[%emt 0:04:47]} Qf6 {[%emt 0:01:15]} 20. Qc3 {[%emt 0:03:25]} Rxd4 {[%emt 0:00:42]} 21. Rc1 {[%emt 0:00:00]} Qg5 {[%emt 0:16:27]} 22. Qa5 {[%emt 0:04:26]} Qd2 {[%emt 0:01:51]} 23. Qxd2 {[%emt 0:05:13]} Rxd2 {[%emt 0:00:00]} 24. e3 {[%emt 0:00:00]} Rxa2 {[%emt 0:08:28]} 25. Nc3 {[%emt 0:03:49]} Bxc3 {[%emt 0:04:38]} 26. R5xc3 {[%emt 0:00:00]} Be6 {[%emt 0:00:59]} 27. h3 {[%emt 0:03:40]} Rb8 {[%emt 0:01:43]} 28. Rxc6 {[%emt 0:00:49]} Rxb3 {[%emt 0:00:00]} 29. R6c2 {[%emt 0:00:00]} Rxc2 {[%emt 0:02:37]} 30. Rxc2 {[%emt 0:00:00]} Rb5 {[%emt 0:00:20]} 31. Kf1 {[%emt 0:00:06]} a5 {[%emt 0:00:31]} 32. Ke2 {[%emt 0:00:00]} a4 {[%emt 0:00:10]} 33. Ra2 {[%emt 0:00:00]} Ra5 {[%emt 0:00:00]} 34. Ra3 {[%emt 0:00:00]} Bd7 {[%emt 0:03:06]} 35. Kd3 {[%emt 0:00:00]} e6 {[%emt 0:00:36]} 36. Kd4 {[%emt 0:00:00]} f6 {[%emt 0:01:32]} 37. f4 {[%emt 0:00:00]} Kf8 {[%emt 0:01:02]} 38. h4 {[%emt 0:00:00]} Ke7 {[%emt 0:00:38]} 39. e4 {[%emt 0:00:00]} Kd6 {[%emt 0:02:12]} 40. e5+ {[%emt 0:00:00]} fxe5+ {[%emt 0:00:48]} 41. fxe5+ {[%emt 0:39:43]} Kc6 {[%emt 0:41:33]} 42. Bf1 {[%emt 0:00:08]} Kb6 {[%emt 0:01:01]} 43. Bd3 {[%emt 0:00:26]} Ra8 {[%emt 0:01:18]} 44. h5 {[%emt 0:00:43]} gxh5 {[%emt 0:04:10]} 45. Bxh7 {[%emt 0:00:07]} Kb5 {[%emt 0:01:42]} 46. Bd3+ {[%emt 0:01:04]} Kb6 {[%emt 0:00:00]} 47. Be2 {[%emt 0:00:00]} Be8 {[%emt 0:00:00]} 48. g4 {[%emt 0:00:00]} hxg4 {[%emt 0:00:00]} 49. Bxg4 {[%emt 0:00:00]} Bd7 {[%emt 0:00:00]} 50. Bf3 {[%emt 0:00:00]} Rh8 {[%emt 0:00:00]} 51. Bxd5 {[%emt 0:00:00]} Rh4+ {[%emt 0:00:00]} 0-1